bitfinex-derivatives/quotes_ETHF0:USTF0_20250217
["timestamp","ask_amount","ask_price","bid_price","bid_amount"]
[1739788484366,3.90303193,2747.7,2747.3,13.46951862]
[1739788484566,3.2078,2747.8,2747.3,13.46951862]
[1739788484567,3.90303193,2747.4,2747.3,13.46951862]
[1739788485470,3.2078,2748.1,2747.3,21.06680969]
[1739788485766,3.90303193,2748.3,2747.5,3.2078]
[1739788485960,3.2078,2748.2,2747.5,3.2078]
[1739788486156,3.2078,2748.2,2747.6,7.8553339]
[1739788486360,6.61903193,2748.6,2747.9,3.2078]
[1739788486563,3.21325038,2748.9,2748.2,3.2078]
[1739788486564,2.717,2748.7,2748.2,3.2078]
[1739788486762,3.90848231,2748.9,2748.2,3.2078]
[1739788486961,0.00545038,2748.9,2748.5,3.2078]
[1739788487161,0.00545038,2748.9,2748.4,1.0949]
[1739788487361,0.00545038,2748.9,2748.6,7.77225028]
[1739788487563,7.11628231,2748.9,2748.2,3.2078]
[1739788487761,7.11628231,2748.9,2748.5,7.60980579]
[1739788488166,7.11628231,2748.9,2748.5,3.2078]
[1739788488461,7.11628231,2748.9,2748.6,7.60980579]
[1739788488670,3.21325038,2748.9,2748.6,7.60980579]
[1739788488864,2.726,2748.8,2748.6,8.33739579]
[1739788489070,2.726,2748.8,2748.6,7.60980579]
[1739788489261,2.726,2748.8,2748.3,7.5728292]
[1739788489458,2.726,2748.8,2748.2,3.2078]
[1739788490264,2.726,2748.8,2748.6,0.72759]
[1739788490578,2.726,2748.8,2748.7,7.53547539]
[1739788490864,2.726,2748.8,2748.1,3.2078]
[1739788491071,2.726,2748.8,2748.5,7.53547539]
[1739788491266,2.726,2748.8,2748.4,7.53547539]
[1739788491459,2.726,2748.8,2748.3,0.72768]
[1739788491460,3.2078,2748.7,2748.3,0.72768]
[1739788491663,2.726,2748.8,2748.6,7.53547539]
[1739788491964,2.726,2748.8,2748.5,7.50129494]
[1739788492267,2.726,2748.8,2748.7,7.50129494]
[1739788492566,0.00545038,2748.9,2748.6,7.50129494]
[1739788492774,2.719,2748.8,2748.7,0.72755]
[1739788492967,0.00545038,2748.9,2748.8,0.72755]
[1739788493766,0.00545038,2748.9,2748.8,11.60172106]
[1739788493963,4.26903711,2749.8,2748.8,10.87417106]
[1739788494274,4.26903711,2749.8,2749.2,0.72744]
[1739788494275,2.717,2749.8,2749.2,0.72744]
[1739788494461,3.2078,2749.7,2748.9,3.2078]
[1739788494662,3.2078,2749.7,2749.3,7.81625635]
[1739788495065,0.72743,2749.3,2749.0,7.12341626]
[1739788495267,7.47683711,2749.4,2749.2,0.00545038]
[1739788495469,2.721,2749.3,2749.2,0.00545038]
[1739788495669,2.721,2749.3,2749.2,0.73289038]
[1739788495865,4.27448749,2749.8,2749.2,3.21325038]
[1739788496071,2.721,2749.7,2749.2,7.46011861]
[1739788496275,4.27448749,2749.8,2749.2,7.46011861]
[1739788496276,0.00545038,2749.8,2749.2,7.46011861]
[1739788496575,2.72645038,2749.8,2749.5,0.72735]
[1739788496776,0.00545038,2749.8,2749.5,0.72735]
[1739788496970,0.00545038,2749.8,2749.7,0.72731]
[1739788497472,7.47683711,2750.6,2749.7,7.68813833]
[1739788497770,2.721,2750.6,2750.3,0.72714]
[1739788498168,2.721,2750.6,2750.1,3.2078]
[1739788498471,2.721,2750.6,2750.2,7.65791831]
[1739788498667,5.9258,2750.9,2750.5,0.7271]
[1739788498866,0.00545038,2750.6,2750.2,7.65791831]
[1739788499175,0.00545038,2750.6,2750.4,0.72713]
[1739788499472,0.00545038,2750.6,2750.2,8.38507831]
[1739788499672,0.00545038,2750.6,2750.2,7.65791831]
[1739788499875,0.00545038,2750.6,2750.3,0.72713]
[1739788500373,0.00545038,2750.6,2750.4,7.85363842]
[1739788500568,0.00545038,2750.6,2750.4,8.58076842]
[1739788500775,0.72713,2750.4,2750.3,7.78567955]
[1739788501072,0.72715,2750.3,2750.2,7.78567955]
[1739788501370,9.2078,2750.3,2750.1,0.72721]
[1739788501570,3.2078,2750.3,2749.7,1.1036]
[1739788501776,2.715,2750.4,2750.3,0.72715]
[1739788502069,2.715,2750.4,2749.8,7.63850594]
[1739788502277,5.9228,2750.4,2750.0,0.72722]
[1739788502571,5.9228,2750.4,2750.0,0.72723]
[1739788502767,6.64994,2750.4,2749.8,7.63850594]
[1739788502977,5.9228,2750.4,2749.8,7.63850594]
[1739788503170,5.9228,2750.4,2749.9,3.2078]
[1739788503471,0.00545038,2750.6,2750.5,0.7271]
[1739788503769,0.00545038,2750.6,2750.2,3.2078]
[1739788504168,0.00545038,2750.6,2750.5,0.7271]
[1739788504367,21.2529,2751.3,2750.3,8.34549951]
[1739788504368,3.2078,2751.1,2750.3,8.34549951]
[1739788504571,5.9198,2751.1,2750.5,7.77479951]
[1739788504769,5.9198,2751.1,2750.4,0.5286]
[1739788504770,5.9198,2751.1,2750.4,8.20982541]
[1739788504974,3.93476,2751.1,2750.4,8.20982541]
[1739788505263,3.2078,2751.1,2750.4,0.5286]
[1739788505476,3.2078,2751.1,2750.9,0.72698]
[1739788505678,0.00545038,2751.0,2750.9,0.72698]
[1739788506371,3.2078,2751.4,2750.9,7.63977148]
[1739788506781,3.2078,2751.4,2751.3,0.72689]
[1739788507166,3.2078,2751.9,2751.3,3.2078]
[1739788507371,5.9118,2751.9,2751.6,0.72679]
[1739788507669,5.9118,2751.9,2751.4,8.6299704]
[1739788507670,5.91725038,2751.9,2751.4,8.6299704]
[1739788508275,5.91725038,2751.9,2751.7,0.72678]
[1739788508571,1.81604,2753.2,2751.4,8.6299704]
[1739788508572,3.2078,2752.9,2751.6,3.2078]
[1739788508771,0.7266,2752.4,2751.8,7.79475503]
[1739788508966,0.7266,2752.4,2751.9,0.72673]
[1739788509170,7.47683711,2752.6,2751.6,2.701]
[1739788509372,7.47683711,2752.6,2752.0,7.79475503]
[1739788509373,8.20339711,2752.6,2752.0,7.79475503]
[1739788509575,10.18083711,2752.6,2751.8,11.00255503]
[1739788509974,10.18083711,2752.6,2752.2,0.72664]
[1739788509975,10.18628749,2752.6,2752.2,0.72664]
[1739788510167,3.21325038,2752.6,2752.0,0.00545038]
[1739788510368,0.00545038,2752.6,2752.3,0.72662]
[1739788510580,0.00545038,2752.6,2752.4,0.7266]
[1739788510779,0.00545038,2752.6,2752.4,8.21283817]
[1739788510980,0.00545038,2752.6,2752.4,7.48623817]
[1739788511381,0.00545038,2752.6,2752.5,0.72657]
[1739788511778,3.2078,2752.9,2752.6,0.72652]
[1739788511979,3.2078,2752.9,2752.1,6.4531]
[1739788512181,3.2078,2752.9,2752.2,7.80201106]
[1739788512375,3.2078,2752.9,2752.4,0.7266]
[1739788512575,3.2078,2752.9,2752.6,0.72654]
[1739788512776,3.2078,2752.9,2752.5,7.62382696]
[1739788512977,3.2078,2752.9,2752.7,8.35034696]
[1739788513176,3.2078,2752.9,2752.7,7.62382696]
[1739788513377,3.2078,2752.9,2752.7,0.72652]
[1739788515085,3.2078,2752.9,2752.6,0.5331]
[1739788515086,0.72652,2752.7,2752.6,0.5331]
[1739788515286,7.10997223,2752.9,2752.3,0.5327]
[1739788515484,3.93437,2752.6,2752.4,7.82204876]
[1739788515690,3.2078,2752.6,2752.4,7.82204876]
[1739788515887,7.10997223,2752.6,2752.0,0.53855038]
[1739788516179,3.90217223,2752.1,2751.5,0.5331]
[1739788516374,3.90217223,2752.4,2751.0,0.5509]
[1739788516375,0.72687,2751.4,2751.0,0.5509]
[1739788516583,6.95564672,2751.5,2751.2,7.60106225]
[1739788516880,0.72688,2751.4,2750.8,0.72702]
[1739788517079,6.95564672,2751.5,2750.9,0.72699]
[1739788517290,7.68250672,2751.5,2751.1,7.50271332]
[1739788517477,0.00545038,2751.5,2750.9,7.5081637]
[1739788517680,0.00545038,2751.5,2751.0,7.50271332]
[1739788517880,0.72672,2752.0,2751.0,7.50271332]
[1739788517881,3.2078,2752.4,2751.4,3.2078]
[1739788518183,2.693,2752.3,2751.7,3.2078]
[1739788518384,2.693,2752.3,2751.9,0.72672]
[1739788518587,3.41964,2752.3,2751.8,7.834915]
[1739788518886,3.41963,2752.3,2751.8,7.834915]
[1739788519083,2.69656652,2752.3,2751.8,7.834915]
[1739788519284,2.69656652,2752.3,2751.5,0.551]
[1739788519285,2.69656652,2752.3,2751.5,8.03295902]
[1739788519482,0.00356652,2752.3,2751.7,3.2078]
[1739788519688,0.00356652,2752.3,2751.9,0.72673]
[1739788519984,0.00356652,2752.3,2751.8,7.46325049]
[1739788520182,0.00356652,2752.3,2751.9,0.72673]
[1739788520379,0.00356652,2752.3,2752.2,0.72665]
[1739788520778,0.00356652,2752.3,2752.2,8.21836856]
[1739788521083,3.2078,2753.4,2752.2,16.18971856]
[1739788521290,3.2078,2753.4,2752.6,3.2078]
[1739788521483,5.9058,2753.4,2752.6,3.2078]
[1739788521685,5.9058,2753.4,2752.7,8.21822856]
[1739788521886,6.63215,2753.4,2752.7,8.21822856]
[1739788522090,3.2078,2753.4,2752.8,0.00545038]
[1739788522287,0.72642,2753.1,2752.8,0.00545038]
[1739788522484,2.695,2753.3,2752.8,0.00545038]
[1739788522684,3.42137,2753.3,2752.8,0.00545038]
[1739788522884,0.7264,2753.2,2752.8,0.00545038]
[1739788523383,0.72641,2753.2,2752.8,0.00545038]
[1739788523584,2.695,2753.3,2752.8,0.00545038]
[1739788523891,3.42138,2753.3,2752.8,0.00545038]
[1739788524292,3.42138,2753.3,2752.8,0.73193038]
[1739788524592,3.42138,2753.3,2752.9,0.72646]
[1739788524593,2.695,2753.3,2752.9,0.72646]
[1739788524787,2.695,2753.3,2752.8,0.00545038]
[1739788525390,3.2078,2753.1,2752.8,0.00545038]
[1739788527092,0.72647,2752.9,2752.8,0.00545038]
[1739788527587,6.0,2752.9,2751.5,5.8908]
[1739788527794,3.2078,2752.8,2752.1,3.2078]
[1739788527984,3.2078,2752.8,2752.5,0.72656]
[1739788527985,2.682,2752.8,2752.5,0.72656]
[1739788528586,2.682,2752.8,2752.6,0.72654]
[1739788528897,2.682,2752.8,2752.5,0.72656]
[1739788529091,2.682,2752.8,2752.4,0.00545038]
[1739788529289,3.40851,2752.8,2752.4,0.73204038]
[1739788529495,2.682,2752.8,2752.4,0.73203038]
[1739788529894,2.682,2752.8,2752.5,0.72657]
[1739788530388,2.682,2752.8,2752.4,0.00545038]
[1739788530588,3.93437,2752.5,2752.4,0.00545038]
[1739788530987,3.93437,2752.5,2751.6,1.1172]
[1739788530988,9.2078,2752.5,2751.6,1.1172]
[1739788531190,3.2078,2751.8,2751.0,0.575]
[1739788531392,2.687,2751.7,2751.0,0.575]
[1739788531687,0.72688,2751.4,2751.1,7.41714714]
[1739788531884,3.2078,2751.2,2750.6,1.0892]
[1739788532194,4.26164672,2750.8,2750.1,3.2078]
[1739788532388,3.41506,2750.7,2750.6,0.00545038]
[1739788532584,2.688,2750.7,2749.8,7.52178528]
[1739788532790,3.2078,2750.3,2749.7,3.2078]
[1739788532993,2.69,2750.2,2749.7,3.2078]
[1739788533292,3.4172,2750.2,2749.8,7.83347895]
[1739788533596,3.2078,2750.3,2749.7,3.2078]
[1739788533798,3.2078,2750.6,2750.2,0.72716]
[1739788534093,3.2078,2750.6,2749.8,7.59178025]
[1739788534094,3.2078,2751.1,2750.3,10.79958025]
[1739788534599,2.695,2751.0,2750.5,0.7271]
[1739788534995,3.2078,2751.1,2750.6,8.17611076]
[1739788535196,5.8998,2751.1,2750.6,7.44905076]
[1739788535498,0.72707,2750.6,2750.5,7.44905076]
[1739788535692,2.694,2750.6,2749.8,0.5629]
[1739788535996,2.694,2750.6,2749.9,7.80591288]
[1739788535997,0.72715,2750.4,2749.9,7.80591288]
[1739788536190,2.694,2750.6,2749.9,7.80591288]
[1739788536391,3.2078,2750.5,2749.9,7.80591288]
[1739788537098,0.72713,2750.4,2749.9,7.80591288]
[1739788537290,3.2078,2750.5,2749.9,7.80591288]
[1739788537693,3.93491,2750.5,2749.9,7.80591288]
[1739788537888,0.7272,2750.2,2749.9,7.80591288]
[1739788538088,3.41621,2750.1,2749.7,3.21325038]
[1739788538402,2.69,2750.1,2749.7,3.21325038]
[1739788538693,2.689,2750.2,2749.8,8.42731517]
[1739788538896,2.689,2750.2,2749.8,7.70004517]
[1739788539099,5.8968,2750.2,2749.7,0.00545038]
[1739788539296,0.72722,2750.1,2749.9,0.1521]
[1739788539497,5.8968,2750.2,2749.9,0.1521]
[1739788539891,2.688,2750.1,2749.9,0.1521]
[1739788540092,2.688,2750.1,2749.9,0.87936]
[1739788540292,2.688,2750.1,2749.9,0.1521]
[1739788540793,3.2078,2750.5,2749.9,0.1521]
[1739788541095,2.686,2750.5,2750.1,3.2078]
[1739788541300,2.686,2750.5,2750.3,0.72713]
[1739788541595,2.686,2750.5,2750.2,7.5717792]
[1739788541800,4.2670971,2751.2,2750.2,7.5717792]
[1739788541801,2.69145038,2751.2,2750.4,10.7795792]
[1739788542000,0.00545038,2751.2,2751.0,3.93476]
[1739788542197,0.00545038,2751.2,2751.0,3.2078]
[1739788542498,3.2078,2751.1,2750.5,8.95555544]
[1739788542691,3.2078,2751.1,2750.5,0.5444]
[1739788542892,0.72708,2750.6,2750.1,0.572]
[1739788543094,2.69645038,2751.2,2750.3,3.2078]
[1739788543297,0.00545038,2751.2,2750.4,7.68901408]
[1739788543498,0.00545038,2751.2,2750.3,3.2078]
[1739788543699,0.72697,2751.1,2750.5,0.2908]
[1739788543896,2.694,2751.0,2750.5,8.06093851]
[1739788544095,2.694,2751.0,2750.5,0.2908]
[1739788544397,2.694,2751.0,2750.6,7.77013851]
[1739788544601,0.00545038,2751.2,2750.7,3.2078]
[1739788544806,0.00545038,2751.2,2751.1,0.72694]
[1739788545304,2.696,2752.3,2751.7,0.72676]
[1739788545506,3.2078,2752.1,2751.7,0.72676]
[1739788545710,3.2078,2752.1,2751.4,3.2078]
[1739788545905,3.2078,2752.1,2751.7,0.72678]
[1739788546300,3.2078,2752.1,2751.6,0.00545038]
[1739788546505,0.00545038,2752.2,2751.8,7.42692025]
[1739788546702,2.69945038,2752.2,2751.8,7.42692025]
[1739788546903,0.00545038,2752.2,2751.7,3.2078]
[1739788547103,0.00545038,2752.2,2752.1,0.72668]
[1739788547301,0.00545038,2752.2,2751.9,7.59809802]
[1739788547607,0.00545038,2752.2,2752.1,7.59809802]
[1739788547795,0.00545038,2752.2,2752.0,0.72669]
[1739788547999,0.00545038,2752.2,2752.0,7.41987702]
[1739788548203,0.00545038,2752.2,2751.8,7.41987702]
[1739788548401,3.21325038,2752.2,2751.7,3.7601]
[1739788548602,3.21325038,2752.2,2751.7,4.48688]
[1739788548817,3.21325038,2752.2,2751.9,0.72672]
[1739788549001,0.00545038,2752.2,2751.8,7.70988153]
[1739788549198,0.72668,2752.1,2751.8,7.70988153]
[1739788549513,0.73211038,2752.2,2751.8,7.70988153]
[1739788549710,0.73211038,2752.2,2751.8,9.16338153]
[1739788550102,0.00545038,2752.2,2751.8,9.89012153]
[1739788550504,0.00545038,2752.2,2751.9,0.72672]
[1739788550812,0.00545038,2752.2,2751.8,9.89012153]
[1739788551003,0.00545038,2752.2,2751.8,9.16338153]
[1739788551206,0.00545038,2752.2,2751.8,9.89014153]
[1739788551811,0.00545038,2752.2,2751.8,9.16338153]
[1739788552104,0.00545038,2752.2,2751.8,9.89014153]
[1739788552712,0.73212038,2752.2,2751.8,9.89013153]
[1739788553220,0.00545038,2752.2,2751.8,9.16338153]
[1739788553414,0.00545038,2752.2,2751.9,0.152]
[1739788553911,0.00545038,2752.2,2752.0,0.7267]
[1739788554211,0.73211038,2752.2,2751.9,0.152]
[1739788554402,0.72669,2752.1,2751.9,0.152]
[1739788554607,0.73211038,2752.2,2751.9,0.152]
[1739788554810,0.00545038,2752.2,2751.9,0.152]
[1739788555004,0.72669,2752.1,2751.9,0.152]
[1739788555305,8.19481861,2752.0,2751.9,0.152]
[1739788556012,3.2078,2752.0,2751.9,0.152]
[1739788556205,3.9345,2752.0,2751.9,0.152]
[1739788557204,4.26576899,2752.2,2751.9,0.152]
[1739788557617,0.7267,2752.1,2751.9,0.87871]
[1739788558006,0.7267,2752.0,2751.9,0.152]
[1739788558406,3.9345,2752.0,2751.9,0.152]
[1739788559612,3.2078,2752.0,2751.9,0.152]
[1739788560008,3.9345,2752.0,2751.9,0.152]
[1739788561704,3.9345,2752.0,2751.9,1.0604]
[1739788563011,3.2078,2752.0,2751.9,1.78713]
[1739788563214,3.2078,2752.0,2751.9,1.0604]
[1739788563406,3.9345,2752.0,2751.9,1.0604]
[1739788563604,3.9345,2752.0,2751.9,2.6603]
[1739788563812,3.2078,2752.0,2751.9,2.6603]
[1739788564006,3.2078,2752.0,2751.9,3.38703]
[1739788564210,3.9345,2752.0,2751.9,3.38703]
[1739788564609,0.00545038,2752.2,2751.9,2.6603]
[1739788564818,2.67245038,2752.2,2751.9,3.1909]
[1739788565020,0.7267,2752.0,2751.9,3.1909]
[1739788565915,2.67245038,2752.2,2751.9,3.1909]
[1739788566117,0.00545038,2752.2,2751.9,3.1909]
[1739788566412,0.00545038,2752.2,2752.1,0.72668]
[1739788566617,0.73212038,2752.2,2751.9,4.2902]
[1739788566807,0.73212038,2752.2,2752.0,0.7267]
[1739788567010,0.73212038,2752.2,2752.1,0.72668]
[1739788567216,0.00545038,2752.2,2752.1,0.72668]
[1739788567919,0.00545038,2752.2,2752.1,8.27948819]
[1739788568225,0.00545038,2752.2,2752.1,9.73288819]
[1739788569226,0.00545038,2752.2,2752.1,9.00620819]
[1739788569422,0.00545038,2752.2,2752.1,9.73288819]
[1739788570016,0.00545038,2752.2,2752.1,10.02348819]
[1739788570220,0.00545038,2752.2,2752.1,9.29680819]
[1739788570418,0.00545038,2752.2,2752.1,10.02348819]
[1739788572422,0.00545038,2752.2,2752.1,10.31408819]
[1739788572919,0.00545038,2752.2,2752.1,10.46618819]
[1739788573311,0.72654,2752.7,2752.1,9.73950819]
[1739788573512,5.8748,2753.2,2752.5,3.2078]
[1739788573717,5.8748,2753.2,2752.8,0.72648]
[1739788574026,2.667,2753.3,2752.9,7.46790361]
[1739788574227,0.72642,2753.1,2752.9,7.46790361]
[1739788574418,3.90449731,2753.2,2752.9,7.46790361]
[1739788574726,0.72644,2753.1,2752.9,7.46790361]
[1739788574917,0.72643,2753.1,2752.9,7.46790361]
[1739788575118,7.11229731,2753.2,2752.9,7.46790361]
[1739788575325,0.72644,2753.0,2752.9,7.46790361]
[1739788575519,7.11229731,2753.2,2752.9,7.46790361]
[1739788575729,0.72643,2753.1,2752.9,7.46790361]
[1739788575918,7.11229731,2753.2,2752.9,7.46790361]
[1739788576319,7.83869731,2753.2,2752.9,8.19435361]
[1739788576517,0.72643,2753.1,2753.0,1.4529]
[1739788577618,7.11229731,2753.2,2753.0,1.4529]
[1739788577821,7.83869731,2753.2,2753.0,1.4529]
[1739788578122,7.11229731,2753.2,2753.0,1.4529]
[1739788578321,0.72641,2753.1,2753.0,1.4529]
[1739788581028,0.72641,2753.1,2753.0,2.361]
[1739788583027,3.2078,2753.2,2753.0,2.361]
[1739788583236,0.72641,2753.1,2753.0,2.6515]
[1739788583431,3.2078,2753.2,2753.1,0.72641]
[1739788585725,0.72639,2753.2,2753.1,2.17931]
[1739788586032,0.00545038,2753.3,2753.1,1.4529]
[1739788586233,0.72639,2753.2,2753.1,1.4529]
[1739788588128,3.2078,2753.2,2752.0,3.2078]
[1739788588335,3.1134837,2752.7,2752.5,0.72655]
[1739788588637,3.1134837,2752.7,2752.2,1.6048]
[1739788588638,3.39148,2752.9,2752.6,7.70507014]
[1739788588933,2.665,2752.9,2752.7,0.72651]
[1739788589135,3.1134837,2753.1,2752.6,7.70507014]
[1739788589427,3.1134837,2753.1,2752.6,8.03857014]
[1739788589733,6.5992,2753.2,2752.9,0.72645]
[1739788589934,5.8728,2753.2,2753.0,0.1521]
[1739788590230,5.8728,2753.2,2753.0,8.51561288]
[1739788590533,0.00545038,2753.3,2753.2,0.72639]
[1739788591331,4.06739757,2754.1,2753.2,8.38756884]
[1739788591532,2.665,2754.0,2753.5,3.9341]
[1739788591737,0.72628,2753.6,2753.2,11.15947884]
[1739788591923,0.72627,2753.7,2753.6,7.78114173]
[1739788592128,3.1134837,2753.8,2753.6,7.78114173]
[1739788592333,3.1134837,2753.8,2753.3,7.78114173]
[1739788592635,3.3912,2754.0,2753.6,7.78114173]
[1739788592840,2.665,2754.0,2753.6,0.72628]
[1739788593135,3.39119,2754.0,2753.6,7.47158759]
[1739788593337,2.665,2754.0,2753.6,0.72627]
[1739788593531,2.665,2754.0,2753.5,3.2078]
[1739788593729,2.665,2754.0,2753.4,0.00545038]
[1739788593928,0.72625,2753.8,2753.6,7.47158759]
[1739788594130,0.72625,2753.8,2753.5,7.51603618]
[1739788594524,0.72625,2753.8,2753.4,0.00545038]
[1739788594735,0.72625,2753.8,2753.5,7.51603618]
[1739788594929,3.39119,2754.0,2753.6,0.72628]
[1739788595131,3.39119,2754.0,2753.5,7.51603618]
[1739788595331,3.39119,2754.0,2753.7,7.64665996]
[1739788595531,3.39119,2754.0,2753.6,0.72627]
[1739788595731,0.72626,2753.7,2753.5,7.64665996]
[1739788595937,2.665,2754.0,2753.4,0.00545038]
[1739788596140,2.665,2754.0,2753.5,7.81257431]
[1739788596440,2.665,2754.0,2753.5,11.02037431]
[1739788596736,2.665,2754.0,2753.7,0.72625]
[1739788597039,2.665,2754.0,2753.8,0.72623]
[1739788597236,2.665,2754.0,2753.5,11.02037431]
[1739788597541,0.72621,2753.9,2753.6,0.72628]
[1739788597733,2.665,2754.0,2753.5,11.02037431]
[1739788597934,0.72621,2753.9,2753.7,7.79921694]
[1739788598130,0.72621,2753.9,2753.6,7.52965372]
[1739788598335,0.72621,2753.9,2753.6,8.25593372]
[1739788598533,2.665,2754.0,2753.4,0.00545038]
[1739788598534,0.72619,2754.0,2753.5,3.2078]
[1739788598843,7.10773128,2754.1,2753.7,7.52965372]
[1739788599034,0.72621,2753.9,2753.6,0.72626]
[1739788599535,0.72621,2753.9,2753.7,7.57926631]
[1739788599735,1.81524,2754.4,2753.7,7.57926631]
[1739788599736,3.2078,2754.4,2753.7,7.57926631]
[1739788599939,3.2078,2754.4,2753.8,1.6934]
[1739788600141,0.72615,2754.2,2753.9,0.7262]
[1739788600435,3.2078,2754.4,2753.9,7.82585824]
[1739788600635,0.72617,2754.1,2753.9,9.27825824]
[1739788600836,0.72611,2754.3,2754.0,0.72617]
[1739788601042,0.72614,2754.2,2754.0,0.72617]
[1739788601244,3.2078,2754.4,2753.9,9.27825824]
[1739788601442,3.93388,2754.4,2753.9,9.27825824]
[1739788601741,0.7261,2754.3,2754.0,8.23594474]
[1739788601935,3.2078,2754.4,2754.0,8.23594474]
[1739788602243,3.93389,2754.4,2754.1,0.72615]
[1739788602539,3.2078,2754.4,2753.9,1.4524]
[1739788602740,3.93387,2754.4,2754.2,7.42187237]
[1739788602942,3.39002,2754.6,2754.2,0.7261]
[1739788603248,3.2078,2754.8,2754.3,7.70156255]
[1739788603432,3.2078,2754.8,2754.4,0.5699]
[1739788603638,3.89993128,2755.3,2754.7,3.2078]
[1739788603832,7.10773128,2755.5,2754.7,3.2078]
[1739788604037,2.664,2755.4,2754.8,7.41773872]
[1739788604242,2.664,2755.4,2754.8,8.14369872]
[1739788604457,0.72587,2755.2,2754.8,8.1491491]
[1739788604844,3.89993128,2755.2,2754.8,7.4231891]
[1739788605343,0.72594,2754.9,2754.8,0.00545038]
[1739788605546,3.2078,2755.1,2754.8,0.00545038]
[1739788605949,0.72594,2754.9,2754.8,0.00545038]
[1739788606243,4.62587128,2754.9,2754.8,0.00545038]
[1739788606439,0.72602,2754.6,2754.5,0.2904]
[1739788606643,10.49775128,2754.6,2754.5,0.2904]
[1739788607848,10.49775128,2754.6,2754.5,0.3331]
[1739788613452,7.28995128,2754.6,2754.5,0.3331]
[1739788613646,10.49775128,2754.6,2754.5,0.3331]
[1739788614651,9.70917868,2754.6,2754.5,0.3331]
[1739788615353,3.39002,2754.6,2754.5,0.3331]
[1739788615648,6.50137868,2754.6,2754.5,0.3331]
[1739788615854,3.83737868,2754.6,2754.5,0.3331]
[1739788616348,7.04517868,2754.6,2754.5,0.4852]
[1739788618252,0.72605,2754.5,2754.3,0.00545038]
[1739788618449,3.83758868,2753.8,2753.7,0.5379]
[1739788619452,3.11135868,2753.8,2753.7,0.5379]
[1739788619648,3.11135868,2753.8,2753.7,0.9851]
[1739788620855,3.2078,2753.9,2753.8,0.72623]
[1739788621050,3.2078,2754.3,2753.7,11.75329627]
[1739788621253,3.2078,2754.3,2753.8,9.37597627]
[1739788621554,3.11135868,2754.4,2754.0,0.72616]
[1739788621760,3.83744868,2754.4,2754.1,0.72614]
[1739788621952,3.83743868,2754.4,2754.2,0.72612]
[1739788622155,0.72611,2754.3,2753.7,4.1929]
[1739788622461,0.72611,2754.3,2754.0,0.72616]
[1739788622647,3.11135868,2754.4,2754.0,0.72616]
[1739788622848,3.11135868,2754.4,2754.1,7.44876527]
[1739788623048,7.68592,2754.6,2754.1,7.44876527]
[1739788623049,7.04527868,2754.2,2754.1,7.44876527]
[1739788623357,7.04527868,2754.2,2754.0,1.6004]
[1739788623358,0.72615,2754.1,2754.0,1.6004]
[1739788623551,3.83750868,2754.1,2754.0,1.6004]
[1739788623950,2.663,2754.2,2754.0,1.6004]
[1739788624154,0.72615,2754.1,2754.0,1.6004]
[1739788624862,3.38915,2754.1,2754.0,1.6004]
[1739788625061,6.50050868,2754.1,2754.0,1.6004]
[1739788625460,3.11135868,2754.1,2754.0,2.32658]
[1739788625664,2.663,2754.2,2754.0,2.32658]
[1739788625961,2.663,2754.2,2754.0,1.6004]
[1739788626162,0.72615,2754.1,2754.0,1.6004]
[1739788626358,7.04530868,2754.1,2754.0,1.6004]
[1739788626551,3.83750868,2754.1,2754.0,1.6004]
[1739788627360,7.04530868,2754.1,2754.0,1.6004]
[1739788629363,0.72623,2753.8,2753.7,0.4472]
[1739788629559,0.72631,2753.5,2753.4,1.24264062]
[1739788629863,0.72642,2753.1,2752.8,1.1548]
[1739788630062,5.8708,2753.1,2752.9,0.72646]
[1739788630252,5.8708,2753.1,2752.9,8.30802135]
[1739788630454,5.8708,2753.1,2752.9,7.58158135]
[1739788630664,3.2078,2753.1,2752.9,7.58158135]
[1739788630962,3.2078,2753.1,2753.0,0.0229]
[1739788631264,0.00545038,2753.3,2753.1,0.72641]
[1739788631561,0.00545038,2753.3,2753.2,1.28249]
[1739788632460,0.00545038,2753.3,2753.2,0.5561]
[1739788632959,0.73181038,2753.3,2753.2,0.5561]
[1739788634365,0.00545038,2753.3,2753.2,0.5561]
[1739788634863,0.73181038,2753.3,2753.2,0.5561]
[1739788636264,0.00545038,2753.3,2753.2,0.5561]
[1739788636766,3.2078,2753.5,2753.4,0.72634]
[1739788637564,3.2078,2754.0,2753.4,11.71789757]
[1739788637767,3.2078,2754.6,2753.7,3.2078]
[1739788637966,0.00545038,2754.0,2753.7,3.93404]
[1739788638269,0.7262,2753.9,2753.8,7.69247796]
[1739788638575,0.72628,2753.6,2753.5,1.219]
[1739788638770,3.11135868,2753.8,2753.5,1.219]
[1739788638964,2.663,2753.9,2753.5,1.219]
[1739788639278,0.00545038,2754.0,2753.8,0.72621]
[1739788639573,0.00545038,2754.0,2753.8,0.72623]
[1739788639767,0.00545038,2754.0,2753.9,7.8405885]
[1739788639973,0.73163038,2754.0,2753.9,7.8405885]
[1739788640172,0.00545038,2754.0,2753.6,8.31801743]
[1739788640375,0.00545038,2754.0,2753.8,0.72623]
[1739788640672,0.00545038,2754.0,2753.6,0.5596]
[1739788640673,0.00545038,2754.0,2753.9,8.48461743]
[1739788640870,0.00545038,2754.0,2753.9,7.75841743]
[1739788641074,0.00545038,2754.0,2753.8,0.72622]
[1739788641274,0.00545038,2754.0,2753.9,7.83941088]
[1739788641571,0.73163038,2754.0,2753.7,0.72624]
[1739788641771,0.72623,2753.8,2753.7,7.83941088]
[1739788642565,0.72622,2753.9,2753.7,7.83941088]
[1739788642975,0.00545038,2754.0,2753.7,7.83941088]
[1739788643376,0.73164038,2754.0,2753.8,0.72623]
[1739788643585,0.00545038,2754.0,2753.8,0.72621]
[1739788643771,0.00545038,2754.0,2753.7,7.83941088]
[1739788644178,0.72622,2753.9,2753.7,7.83941088]
[1739788644482,0.00545038,2754.0,2753.7,8.56566088]
[1739788644483,0.73164038,2754.0,2753.7,8.56566088]
[1739788644983,0.00545038,2754.0,2753.9,0.7262]